fUST/lending_fUST_20240826
["ID","MTS","AMOUNT","RATE_DAILY","PERIOD"]
[336062650,1724685935351,-500.0,0.00011508,2]
[336062651,1724685935374,-500.0,0.00011508,2]
[336062652,1724685935398,-500.0,0.00011508,2]
[336062653,1724685935422,-500.0,0.00011508,2]
[336062654,1724685935445,-500.0,0.00011508,2]
[336062655,1724685935470,-500.0,0.00011508,2]
[336062656,1724685935492,-526.4546272,0.00011508,2]
[336062657,1724685935513,-767.01,0.00011508,2]
[336062658,1724685935536,-500.0,0.00011508,2]
[336062659,1724685935559,-500.0,0.00011508,2]
[336062660,1724685935584,-500.0,0.00011508,2]
[336062661,1724685935606,-500.0,0.00011508,2]
[336062662,1724685935628,-500.0,0.00011508,2]
[336062663,1724685935651,-500.0,0.00011508,2]
[336062664,1724685935674,-585.54086166,0.00011508,2]
[336062665,1724685935695,-500.0,0.00011508,2]
[336062666,1724685935717,-500.0,0.00011508,2]
[336062667,1724685935738,-500.0,0.00011508,2]
[336062668,1724685935761,-771.96,0.00011508,2]
[336062669,1724685935782,-500.0,0.00011508,2]
[336062670,1724685935804,-500.0,0.00011508,2]
[336062671,1724685935829,-500.0,0.00011508,2]
[336062672,1724685935851,-432.9631065,0.00011508,2]
[336062673,1724685935874,-500.0,0.00011508,2]
[336062674,1724685935897,-500.0,0.00011508,2]
[336062675,1724685935922,-500.0,0.00011508,2]
[336062676,1724685935945,-500.0,0.00011508,2]
[336062677,1724685935968,-277.641212,0.00011508,2]
[336062678,1724685935990,-500.0,0.00011508,2]
[336062679,1724685936012,-500.0,0.00011508,2]
[336062680,1724685936035,-500.0,0.00011508,2]
[336062681,1724685936057,-500.0,0.00011508,2]
[336062682,1724685936080,-500.0,0.00011508,2]
[336062683,1724685936103,-500.0,0.00011508,2]
[336062684,1724685936124,-565.74976442,0.00011508,2]
[336062685,1724685936149,-500.0,0.00011508,2]
[336062686,1724685936171,-546.29,0.00011508,2]
[336062687,1724685936192,-500.0,0.00011508,2]
[336062688,1724685936215,-549.1,0.00011508,2]
[336062689,1724685936237,-500.0,0.00011508,2]
[336062690,1724685936260,-500.0,0.00011508,2]
[336062691,1724685936283,-500.0,0.00011508,2]
[336062692,1724685936307,-500.0,0.00011508,2]
[336062693,1724685936331,-500.0,0.00011508,2]
[336062694,1724685936354,-500.0,0.00011508,2]
[336062695,1724685936377,-500.0,0.00011508,2]
[336062696,1724685936398,-500.0,0.00011508,2]
[336062697,1724685936420,-500.0,0.00011508,2]
[336062698,1724685936444,-500.0,0.00011508,2]
[336062699,1724685936465,-851.37,0.00011508,2]
[336062700,1724685936488,-500.0,0.00011508,2]
[336062701,1724685936510,-500.0,0.00011508,2]
[336062702,1724685936531,-500.0,0.00011508,2]
[336062703,1724685936552,-500.0,0.00011508,2]
[336062704,1724685936575,-500.0,0.00011508,2]
[336062705,1724685936597,-500.0,0.00011508,2]
[336062706,1724685936619,-500.0,0.00011508,2]
[336062707,1724685936641,-500.0,0.00011508,2]
[336062708,1724685936664,-911.67,0.00011508,2]
[336062709,1724685936687,-1026.7,0.00011508,2]
[336062710,1724685936708,-206.58969541,0.00011508,2]
[336062711,1724685936729,-500.0,0.00011508,2]
[336062712,1724685936750,-500.0,0.00011508,2]
[336062713,1724685936772,-500.0,0.00011508,2]
[336062714,1724685936793,-500.0,0.00011508,2]
[336062715,1724685936816,-500.0,0.00011508,2]
[336062716,1724685936841,-324.30742059,0.00011508,2]
[336062717,1724685941105,-1843.27713185,9.524e-05,2]
[336062718,1724685941130,-500.84,0.00011506,2]
[336062719,1724685941155,-500.0,0.00011506,2]
[336062720,1724685941179,-500.0,0.00011506,2]
[336062721,1724685941201,-500.0,0.00011506,2]
[336062722,1724685941223,-95.76604139,0.00011507,2]
[336062727,1724686030121,-282.62479478,9.9e-05,2]
[336062728,1724686030145,-1072.41136348,0.00010957,2]
[336062729,1724686030237,-2307.63505893,0.00010957,2]
[336062730,1724686040100,-4602.6582221,0.00010957,2]
[336062731,1724686040123,-196.95212144,0.00010958,2]
[336062732,1724686040146,-728.99941278,0.00010958,2]
[336062733,1724686040173,-255.38660707,0.00010958,2]
[336062734,1724686040196,-1614.5867324,0.00010958,2]
[336062735,1724686040221,-300.0,0.00011115,2]
[336062736,1724686040243,-606.15697157,0.00011116,2]
[336062737,1724686040264,-241.25220874,0.00011116,2]
[336062738,1724686040285,-234.58202777,0.00011116,2]
[336062739,1724686040307,-811.79192934,0.00011116,2]
[336062740,1724686040328,-206.71868541,0.00011409,2]
[336062741,1724686040349,-544.2854961,0.00011409,2]
[336062742,1724686040371,-156.9630917,0.00011409,2]
[336062743,1724686040392,-569.97573911,0.00011409,2]
[336062744,1724686040415,-494.75407928,0.00011506,2]
[336062745,1724686040440,-500.0,0.00011506,2]
[336062746,1724686040464,-564.61,0.00011506,2]
[336062747,1724686040486,-500.0,0.00011506,2]
[336062748,1724686040508,-500.0,0.00011506,2]
[336062749,1724686040530,-500.0,0.00011506,2]
[336062750,1724686040554,-2314.07,0.00011506,2]
[336062751,1724686040575,-652.67,0.00011506,2]
[336062752,1724686040596,-500.0,0.00011506,2]
[336062753,1724686040618,-1234.02,0.00011506,2]
[336062754,1724686040640,-500.0,0.00011506,2]
[336062755,1724686040661,-2066.95,0.00011506,2]
[336062756,1724686040696,-908.26,0.00011506,2]
[336062757,1724686040718,-404.23395861,0.00011507,2]
[336062758,1724686040739,-500.0,0.00011507,2]
[336062759,1724686040759,-500.0,0.00011507,2]
[336062760,1724686040780,-500.0,0.00011507,2]
[336062761,1724686040800,-500.0,0.00011507,2]
[336062762,1724686040821,-523.53,0.00011507,2]
[336062763,1724686040842,-548.48,0.00011507,2]
[336062764,1724686040866,-531.83319559,0.00011507,2]
[336062765,1724686040888,-500.0,0.00011507,2]
[336062766,1724686040910,-500.0,0.00011507,2]
[336062767,1724686040941,-2314.07,0.00011507,2]
[336062768,1724686040963,-2314.07,0.00011507,2]
[336062769,1724686040985,-500.0,0.00011507,2]
[336062770,1724686041008,-500.0,0.00011507,2]
[336062771,1724686041029,-500.0,0.00011507,2]
[336062772,1724686041051,-500.0,0.00011507,2]
[336062773,1724686041072,-500.0,0.00011507,2]
[336062774,1724686041094,-510.5149478,0.00011507,2]
[336062775,1724686041116,-500.0,0.00011507,2]
[336062776,1724686041138,-809.88,0.00011507,2]
[336062777,1724686041159,-500.0,0.00011507,2]
[336062778,1724686041187,-983.92,0.00011507,2]
[336062779,1724686041209,-500.0,0.00011507,2]
[336062780,1724686041229,-500.0,0.00011507,2]
[336062781,1724686041251,-500.0,0.00011507,2]
[336062782,1724686041272,-500.0,0.00011508,2]
[336062783,1724686041293,-500.0,0.00011508,2]
[336062784,1724686041313,-500.0,0.00011508,2]
[336062785,1724686041335,-500.0,0.00011508,2]
[336062786,1724686041356,-500.0,0.00011508,2]
[336062787,1724686041378,-349.27415895,0.00011508,2]
[336062788,1724686041403,-500.0,0.00011508,2]
[336062789,1724686041427,-259.21856278,0.00011508,2]
[336062790,1724686044099,-154.72922386,0.00011409,2]
[336062791,1724686044121,-775.54,0.00011506,2]
[336062792,1724686044143,-240.78143722,0.00011508,2]
[336062793,1724686044166,-500.0,0.00011508,2]
[336062794,1724686044188,-499.97040165,0.00011508,2]
[336062803,1724686150124,-377.43601722,9.9e-05,2]
[336062804,1724686150147,-220.73730923,0.00010739,2]
[336062805,1724686150169,-300.0,0.00010957,2]
[336062806,1724686150193,-191.92780552,0.00010958,2]
[336062807,1724686150217,-197.62223028,0.00010958,2]
[336062808,1724686150247,-154.74467129,0.00010958,2]
[336062809,1724686150268,-202.69922161,0.00010958,2]
[336062810,1724686150291,-155.03123435,0.00010958,2]
[336062811,1724686150312,-162.76351363,0.00010958,2]
[336062812,1724686150333,-223.63719614,0.00010958,2]
[336062813,1724686151247,166.5356072,0.00010958,2]
[336062814,1724686159140,-8.38874392,0.00010958,2]
[336062815,1724686159163,-500.0,0.00011409,2]
[336062816,1724686159185,-41414.0191565,0.00011409,2]
[336062817,1724686161184,-1027.52361605,0.00011409,2]
[336062818,1724686161213,-154.87224043,0.00011409,2]
[336062819,1724686161235,-161.65502376,0.00011409,2]
[336062820,1724686161260,-180.92268934,0.00011409,2]
[336062821,1724686161515,-157.14223377,0.00011409,2]
[336062822,1724686162945,154.72922386,0.00010958,2]
[336062834,1724686192861,17.77352627,0.00011409,2]
[336062899,1724686232743,-241.22456252,0.00010959,2]
[336062916,1724686233326,-251.92838948,0.00010959,2]
[336062917,1724686233337,-500.0,0.00011409,2]
[336062919,1724686233347,-1734.77,0.00011409,2]
[336062921,1724686233357,-500.0,0.00011409,2]
[336062922,1724686233368,-500.0,0.00011409,2]
[336062924,1724686233379,-500.0,0.00011409,2]
[336062926,1724686233389,-500.0,0.00011409,2]
[336062928,1724686233399,-274.9314048,0.00011409,2]
[336062940,1724686238696,-225.0685952,0.00011409,2]
[336062941,1724686238706,-500.0,0.00011409,2]
[336062942,1724686238715,-500.0,0.00011409,2]
[336062943,1724686238725,-800.36528259,0.00011409,2]
[336062944,1724686238737,-346.46491659,0.00011409,2]
[336062945,1724686238748,-154.72922386,0.00011409,2]
[336062946,1724686238760,-300.0,0.00011505,2]
[336062947,1724686238770,-775.01,0.00011506,2]
[336062948,1724686238780,-500.0,0.00011506,2]
[336062949,1724686238789,-308.90880446,0.00011506,2]
[336062950,1724686238805,-191.09119554,0.00011506,2]
[336062951,1724686238815,-715.22,0.00011506,2]
[336062952,1724686238824,-500.0,0.00011506,2]
[336062953,1724686238834,-948.3,0.00011506,2]
[336062954,1724686238843,-590.81,0.00011506,2]
[336062955,1724686238853,-500.0,0.00011506,2]
[336062956,1724686238863,-500.0,0.00011506,2]
[336062957,1724686238872,-500.0,0.00011506,2]
[336062958,1724686238882,-18649.43,0.00011506,2]
[336062959,1724686238891,-566.99,0.00011506,2]
[336062960,1724686238902,-884.2,0.00011506,2]
[336062961,1724686238912,-500.0,0.00011506,2]
[336062962,1724686238923,-1022.06,0.00011506,2]
[336062963,1724686238935,-500.0,0.00011506,2]
[336062964,1724686238946,-500.0,0.00011506,2]
[336062965,1724686238956,-525.62,0.00011506,2]
[336062966,1724686238966,-501.72,0.00011506,2]
[336062967,1724686238976,-500.0,0.00011506,2]
[336062968,1724686238988,-500.0,0.00011506,2]
[336062969,1724686238997,-500.0,0.00011506,2]
[336062970,1724686239006,-500.0,0.00011506,2]
[336062971,1724686239015,-500.0,0.00011506,2]
[336062972,1724686239025,-942.92,0.00011506,2]
[336062973,1724686239037,-679.31,0.00011507,2]
[336062974,1724686239047,-641.44,0.00011507,2]
[336062975,1724686239058,-693.38,0.00011507,2]
[336062976,1724686239068,-712.93,0.00011507,2]
[336062977,1724686239079,-500.0,0.00011507,2]
[336062978,1724686239088,-744.07,0.00011507,2]
[336062979,1724686239098,-500.0,0.00011507,2]
[336062980,1724686239108,-786.68,0.00011507,2]
[336062981,1724686239118,-1011.54,0.00011507,2]
[336062982,1724686239128,-500.0,0.00011507,2]
[336062983,1724686239137,-513.65,0.00011507,2]
[336062984,1724686239147,-500.0,0.00011507,2]
[336062985,1724686239157,-634.94,0.00011507,2]
[336062986,1724686239167,-542.98887188,0.00011507,2]
[336062987,1724686239177,-1001.36,0.00011507,2]
[336062988,1724686239187,-500.0,0.00011507,2]
[336062989,1724686239196,-500.0,0.00011507,2]
[336062990,1724686239206,-500.0,0.00011507,2]
[336062991,1724686239218,-569.68,0.00011507,2]
[336062992,1724686239230,-500.0,0.00011507,2]
[336062993,1724686239241,-1883.01,0.00011507,2]
[336062994,1724686239252,-527.46,0.00011507,2]
[336062995,1724686239262,-500.0,0.00011507,2]
[336062996,1724686239271,-1026.64,0.00011507,2]
[336062997,1724686239281,-633.44,0.00011507,2]
[336062998,1724686239291,-500.0,0.00011507,2]
[336062999,1724686239300,-500.0,0.00011507,2]
[336063000,1724686239310,-500.0,0.00011507,2]
[336063001,1724686239321,-500.0,0.00011507,2]
[336063002,1724686239330,-500.0,0.00011507,2]
[336063003,1724686239341,-500.0,0.00011507,2]
[336063004,1724686239351,-606.63,0.00011507,2]
[336063005,1724686239362,-1703.92,0.00011507,2]
[336063006,1724686239371,-843.14,0.00011507,2]
[336063007,1724686239380,-984.36,0.00011507,2]
[336063008,1724686239390,-500.0,0.00011507,2]
[336063009,1724686239400,-500.0,0.00011507,2]
[336063010,1724686239409,-500.0,0.00011507,2]
[336063011,1724686239420,-581.6,0.00011507,2]
[336063012,1724686239431,-621.81,0.00011507,2]
[336063013,1724686239441,-571.29,0.00011507,2]
[336063014,1724686239452,-500.0,0.00011507,2]
[336063015,1724686239464,-500.0,0.00011507,2]
[336063016,1724686239473,-500.0,0.00011507,2]
[336063018,1724686239483,-500.0,0.00011507,2]
[336063019,1724686239493,-575.8,0.00011507,2]
[336063021,1724686239503,-500.0,0.00011507,2]
[336063023,1724686239513,-500.0,0.00011507,2]
[336063024,1724686239523,-500.0,0.00011507,2]
[336063025,1724686239533,-500.0,0.00011507,2]
[336063027,1724686239544,-500.0,0.00011507,2]
[336063028,1724686239554,-500.0,0.00011507,2]
[336063030,1724686239565,-500.0,0.00011507,2]
[336063031,1724686239585,-1253.34,0.00011507,2]
[336063032,1724686239594,-500.0,0.00011507,2]
[336063033,1724686239602,-500.0,0.00011507,2]
[336063034,1724686239611,-1370.77,0.00011507,2]
[336063036,1724686239620,-500.0,0.00011507,2]
[336063037,1724686239629,-500.0,0.00011507,2]
[336063038,1724686239638,-2271.97,0.00011507,2]
[336063039,1724686239647,-500.0,0.00011507,2]
[336063040,1724686239655,-819.14,0.00011507,2]
[336063041,1724686239665,-500.0,0.00011507,2]
[336063042,1724686239674,-0.02959835,0.00011508,2]
[336063043,1724686239684,-500.0,0.00011508,2]
[336063044,1724686239694,-500.0,0.00011508,2]
[336063045,1724686239703,-500.0,0.00011508,2]
[336063046,1724686239712,-820.24,0.00011508,2]
[336063047,1724686239721,-500.0,0.00011508,2]
[336063048,1724686239730,-500.0,0.00011508,2]
[336063049,1724686239740,-528.53858389,0.00011508,2]
[336063050,1724686239749,-333.43068512,0.00011508,2]
[336063051,1724686239758,-500.0,0.00011508,2]
[336063052,1724686239767,-552.58,0.00011508,2]
[336063053,1724686239776,-500.0,0.00011508,2]
[336063054,1724686239786,-500.0,0.00011508,2]
[336063055,1724686239795,-599.34,0.00011508,2]
[336063056,1724686239804,-500.0,0.00011508,2]
[336063057,1724686239814,-500.0,0.00011508,2]
[336063058,1724686239823,-500.0,0.00011508,2]
[336063059,1724686239833,-500.0,0.00011508,2]
[336063060,1724686239843,-500.0,0.00011508,2]
[336063061,1724686239854,-500.0,0.00011508,2]
[336063062,1724686239865,-500.0,0.00011508,2]
[336063063,1724686239875,-500.0,0.00011508,2]
[336063064,1724686239885,-500.0,0.00011508,2]
[336063065,1724686239895,-502.5,0.00011508,2]
[336063066,1724686239909,-500.0,0.00011508,2]
[336063067,1724686239918,-500.0,0.00011508,2]
[336063068,1724686239928,-500.0,0.00011508,2]
[336063069,1724686239938,-500.0,0.00011508,2]
[336063070,1724686239949,-750.57,0.00011508,2]
[336063071,1724686239959,-500.0,0.00011508,2]
[336063072,1724686239969,-500.0,0.00011508,2]
[336063073,1724686239979,-500.0,0.00011508,2]
[336063074,1724686239993,-500.0,0.00011508,2]
[336063075,1724686240003,-500.0,0.00011508,2]
[336063076,1724686240013,-612.14,0.00011508,2]
[336063077,1724686240024,-500.0,0.00011508,2]
[336063078,1724686240034,-500.0,0.00011508,2]
[336063079,1724686240044,-500.0,0.00011508,2]
[336063080,1724686240055,-500.0,0.00011508,2]
[336063081,1724686240068,-500.0,0.00011508,2]
[336063082,1724686240077,-500.0,0.00011508,2]
[336063083,1724686240087,-500.0,0.00011508,2]
[336063084,1724686240096,-375.43545941,0.00011508,2]
[336063085,1724686240106,-500.0,0.00011508,2]
[336063086,1724686240116,-778.69,0.00011508,2]
[336063087,1724686240125,-500.0,0.00011508,2]
[336063088,1724686240135,-502.49677896,0.00011508,2]
[336063089,1724686240144,-501.10539911,0.00011508,2]
[336063090,1724686240154,-304.47447618,0.00011508,2]
[336063091,1724686240164,-617.2,0.00011508,2]
[336063092,1724686240173,-500.0,0.00011508,2]
[336063093,1724686240183,-500.0,0.00011508,2]
[336063094,1724686240193,-500.0,0.00011508,2]
[336063095,1724686240203,-515.63965774,0.00011508,2]
[336063096,1724686240213,-624.51,0.00011508,2]
[336063097,1724686240223,-2314.07,0.00011508,2]
[336063098,1724686240232,-500.0,0.00011508,2]
[336063099,1724686240242,-585.25,0.00011508,2]
[336063100,1724686240252,-500.0,0.00011508,2]
[336063101,1724686240262,-204.46897405,0.00011508,2]
[336063102,1724686240272,-517.24,0.00011508,2]
[336063103,1724686240281,-500.0,0.00011508,2]
[336063104,1724686240291,-500.0,0.00011508,2]
[336063105,1724686240300,-500.0,0.00011508,2]
[336063106,1724686240310,-500.0,0.00011508,2]
[336063107,1724686240320,-624.61,0.00011508,2]
[336063108,1724686240330,-500.0,0.00011508,2]
[336063111,1724686240340,-500.0,0.00011508,2]
[336063112,1724686240349,-500.0,0.00011508,2]
[336063113,1724686240358,-782.77,0.00011508,2]
[336063114,1724686240367,-500.0,0.00011508,2]
[336063115,1724686240377,-500.0,0.00011508,2]
[336063116,1724686240386,-500.0,0.00011508,2]
[336063117,1724686240396,-169.22126804,0.00011508,2]
[336063118,1724686240406,-500.0,0.00011508,2]
[336063119,1724686240415,-500.0,0.00011508,2]
[336063120,1724686240426,-548.05,0.00011508,2]
[336063121,1724686240437,-500.0,0.00011508,2]
[336063122,1724686240446,-501.58266784,0.00011508,2]
[336063123,1724686240455,-502.13601694,0.00011508,2]
[336063124,1724686240465,-500.0,0.00011508,2]
[336063125,1724686240475,-500.0,0.00011508,2]
[336063126,1724686240484,-500.0,0.00011508,2]
[336063127,1724686240493,-517.45537714,0.00011508,2]
[336063128,1724686240503,-500.0,0.00011508,2]
[336063129,1724686240514,-500.0,0.00011508,2]
[336063130,1724686240523,-500.0,0.00011508,2]
[336063131,1724686240532,-500.0,0.00011508,2]
[336063132,1724686240543,-500.0,0.00011508,2]
[336063133,1724686240554,-500.0,0.00011508,2]
[336063134,1724686240565,-500.0,0.00011508,2]
[336063135,1724686240577,-500.0,0.00011508,2]
[336063136,1724686240586,-500.0,0.00011508,2]
[336063137,1724686240595,-667.51,0.00011508,2]
[336063138,1724686240606,-656.37,0.00011508,2]
[336063139,1724686240616,-500.0,0.00011508,2]
[336063140,1724686240626,-500.0,0.00011508,2]
[336063141,1724686240636,-500.0,0.00011508,2]
[336063142,1724686240648,-500.0,0.00011508,2]
[336063143,1724686240659,-500.0,0.00011508,2]
[336063144,1724686240669,-500.0,0.00011508,2]
[336063145,1724686240680,-500.0,0.00011508,2]
[336063146,1724686240689,-500.0,0.00011508,2]
[336063147,1724686240699,-500.0,0.00011508,2]
[336063148,1724686240708,-500.0,0.00011508,2]
[336063149,1724686240718,-500.0,0.00011508,2]
[336063150,1724686240727,-500.0,0.00011508,2]
[336063152,1724686240738,-500.0,0.00011508,2]
[336063154,1724686240749,-172.8666486,0.00011508,2]
[336063155,1724686240759,-542.3,0.00011508,2]
[336063157,1724686240769,-318.6461371,0.00011508,2]
[336063159,1724686240779,-500.0,0.00011508,2]
[336063160,1724686240789,-500.0,0.00011508,2]
[336063161,1724686240798,-500.0,0.00011508,2]
[336063162,1724686240808,-506.68961544,0.00011508,2]
[336063164,1724686240820,-500.0,0.00011508,2]
[336063166,1724686240829,-500.0,0.00011508,2]
[336063167,1724686240838,-267.30597045,0.00011508,2]
[336063168,1724686240848,-500.0,0.00011508,2]
[336063169,1724686240859,-500.0,0.00011508,2]
[336063170,1724686240869,-500.0,0.00011508,2]
[336063171,1724686240879,-279.40943026,0.00011508,2]
[336063172,1724686240890,-500.0,0.00011508,2]
[336063173,1724686240902,-500.0,0.00011508,2]
[336063174,1724686240914,-361.17671763,0.00011508,2]
[336063175,1724686240923,-500.0,0.00011508,2]
[336063176,1724686240935,-500.0,0.00011508,2]
[336063177,1724686240948,-500.0,0.00011508,2]
[336063178,1724686240958,-500.0,0.00011508,2]
[336063179,1724686240968,-500.0,0.00011508,2]
[336063180,1724686240979,-500.0,0.00011508,2]
[336063181,1724686240990,-500.0,0.00011508,2]
[336063182,1724686241001,-500.0,0.00011508,2]
[336063184,1724686241011,-500.0,0.00011508,2]
[336063186,1724686241020,-545.90072076,0.00011508,2]
[336063188,1724686241031,-500.0,0.00011509,2]
[336063190,1724686241040,-500.0,0.00011509,2]
[336063192,1724686241049,-500.0,0.00011509,2]
[336063194,1724686241060,-500.0,0.00011509,2]
[336063195,1724686241070,-777.21,0.00011509,2]
[336063197,1724686241079,-500.0,0.00011509,2]
[336063198,1724686241089,-500.0,0.00011509,2]
[336063200,1724686241099,-367.58102286,0.00011509,2]
[336063201,1724686241108,-655.13,0.00011509,2]
[336063202,1724686241117,-570.79,0.00011509,2]
[336063203,1724686241128,-500.0,0.00011509,2]
[336063204,1724686241136,-500.0,0.00011509,2]
[336063205,1724686241146,-500.0,0.00011509,2]
[336063206,1724686241156,-500.0,0.00011509,2]
[336063207,1724686241166,-538.81,0.00011509,2]
[336063208,1724686241175,-500.0,0.00011509,2]
[336063209,1724686241185,-500.0,0.00011509,2]
[336063210,1724686241196,-500.0,0.00011509,2]
[336063211,1724686241206,-745.0,0.00011509,2]
[336063212,1724686241216,-500.0,0.00011509,2]
[336063213,1724686241225,-769.22,0.00011509,2]
[336063214,1724686241235,-500.0,0.00011509,2]
[336063215,1724686241245,-570.58,0.00011509,2]
[336063216,1724686241255,-500.0,0.00011509,2]
[336063217,1724686241264,-656.19,0.00011509,2]
[336063218,1724686241274,-500.0,0.00011509,2]
[336063219,1724686241283,-500.0,0.00011509,2]
[336063220,1724686241292,-584.88,0.00011509,2]
[336063221,1724686241302,-500.0,0.00011509,2]
[336063222,1724686241312,-500.0,0.00011509,2]
[336063223,1724686241322,-500.0,0.00011509,2]
[336063224,1724686241332,-500.0,0.00011509,2]
[336063225,1724686241342,-500.0,0.00011509,2]
[336063226,1724686241351,-624.14,0.00011509,2]
[336063227,1724686241360,-500.0,0.00011509,2]
[336063228,1724686241370,-500.0,0.00011509,2]
[336063229,1724686241379,-1115.32,0.00011509,2]
[336063230,1724686241388,-500.0,0.00011509,2]
[336063231,1724686241397,-2314.07,0.00011509,2]
[336063232,1724686241408,-2314.07,0.00011509,2]
[336063233,1724686241417,-2314.07,0.00011509,2]
[336063234,1724686241426,-2314.07,0.00011509,2]
[336063235,1724686241436,-500.0,0.00011509,2]
[336063236,1724686241445,-518.77,0.00011509,2]
[336063237,1724686241455,-500.0,0.00011509,2]
[336063238,1724686241464,-603.3,0.00011509,2]
[336063239,1724686241473,-500.0,0.00011509,2]
[336063240,1724686241482,-500.0,0.00011509,2]
[336063241,1724686241492,-500.0,0.00011509,2]
[336063242,1724686241501,-500.0,0.00011509,2]
[336063243,1724686241510,-500.0,0.00011509,2]
[336063244,1724686241520,-873.64,0.00011509,2]
[336063245,1724686241530,-500.0,0.00011509,2]
[336063246,1724686241539,-500.0,0.00011509,2]
[336063247,1724686241548,-947.75,0.00011509,2]
[336063248,1724686241557,-500.0,0.00011509,2]
[336063249,1724686241568,-500.0,0.00011509,2]
[336063250,1724686241578,-736.2,0.00011509,2]
[336063251,1724686241588,-500.0,0.00011509,2]
[336063252,1724686241598,-556.59084258,0.00011509,2]
[336063253,1724686241608,-500.0,0.00011509,2]
[336063254,1724686241618,-500.0,0.00011509,2]
[336063255,1724686241629,-500.0,0.00011509,2]
[336063256,1724686241638,-500.0,0.00011509,2]
[336063257,1724686241648,-500.0,0.00011509,2]
[336063258,1724686241660,-500.0,0.00011509,2]
[336063259,1724686241669,-500.0,0.00011509,2]
[336063260,1724686241678,-500.0,0.00011509,2]
[336063261,1724686241687,-500.0,0.00011509,2]
[336063262,1724686241696,-500.0,0.00011509,2]
[336063263,1724686241707,-500.0,0.00011509,2]
[336063264,1724686241717,-500.0,0.00011509,2]
[336063265,1724686241728,-525.94,0.00011509,2]
[336063266,1724686241738,-900.34,0.00011509,2]
[336063267,1724686241747,-500.0,0.00011509,2]
[336063268,1724686241758,-500.0,0.00011509,2]
[336063269,1724686241768,-500.0,0.00011509,2]
[336063270,1724686241777,-500.0,0.00011509,2]
[336063271,1724686241786,-500.0,0.00011509,2]
[336063272,1724686241796,-500.0,0.00011509,2]
[336063273,1724686241806,-500.0,0.00011509,2]
[336063274,1724686241816,-500.0,0.00011509,2]
[336063275,1724686241827,-832.77,0.00011509,2]
[336063276,1724686241836,-832.77,0.00011509,2]
[336063277,1724686241846,-832.77,0.00011509,2]
[336063278,1724686241856,-500.0,0.0001151,2]
[336063279,1724686241865,-500.0,0.0001151,2]
[336063280,1724686241874,-500.0,0.0001151,2]
[336063281,1724686241883,-500.0,0.0001151,2]
[336063282,1724686241893,-761.59,0.0001151,2]
[336063283,1724686241904,-500.0,0.0001151,2]
[336063284,1724686241914,-208.39833343,0.0001151,2]
[336063285,1724686241923,-500.0,0.0001151,2]
[336063286,1724686241933,-500.0,0.0001151,2]
[336063287,1724686241943,-500.0,0.0001151,2]
[336063288,1724686241952,-500.0,0.0001151,2]
[336063289,1724686241961,-500.0,0.0001151,2]
[336063290,1724686241971,-500.0,0.0001151,2]